[Event "*** SCC Grand Prix: Titled Tuesday Blitz"]
[Site "Chess.com"]
[Date "2020.06.09"]
[Round "5"]
[White "louis198"]
[Black "ARTHURMOTIVATOR"]
[Result "1-0"]
[WhiteElo "2438"]
[BlackElo "2268"]
[TimeControl "180+1"]
[EndTime "9:57:24 PDT"]
[Termination "louis198 won on time"]

1. d4 {[%clk 0:03:00.9]} 1... Nf6 {[%clk 0:02:58.5]} 2. Bf4 {[%clk 0:03:00.5]}
2... g6 {[%clk 0:02:55.7]} 3. e3 {[%clk 0:03:01]} 3... Bg7 {[%clk 0:02:55.3]} 4.
h3 {[%clk 0:03:01.6]} 4... O-O {[%clk 0:02:54.5]} 5. Nf3 {[%clk 0:03:02.2]} 5...
d6 {[%clk 0:02:54.7]} 6. Bc4 {[%clk 0:03:02.8]} 6... b6 {[%clk 0:02:54.5]} 7.
O-O {[%clk 0:03:03.2]} 7... Bb7 {[%clk 0:02:55]} 8. a4 {[%clk 0:03:03.4]} 8...
a6 {[%clk 0:02:53.9]} 9. c3 {[%clk 0:03:03.7]} 9... Nbd7 {[%clk 0:02:54.2]} 10.
Nbd2 {[%clk 0:03:02.8]} 10... Ra7 {[%clk 0:02:54.1]} 11. Qb3 {[%clk 0:02:56.2]}
11... Qa8 {[%clk 0:02:51.8]} 12. Rfd1 {[%clk 0:02:56.3]} 12... Ne4 {[%clk
0:02:19.8]} 13. Nxe4 {[%clk 0:02:54.1]} 13... Bxe4 {[%clk 0:02:18.9]} 14. Ne1
{[%clk 0:02:55]} 14... e5 {[%clk 0:02:12.8]} 15. Bg3 {[%clk 0:02:53.5]} 15...
Qe8 {[%clk 0:01:16.2]} 16. f3 {[%clk 0:02:50.1]} 16... Bb7 {[%clk 0:01:09]} 17.
Bf2 {[%clk 0:02:48.3]} 17... Kh8 {[%clk 0:01:07.9]} 18. e4 {[%clk 0:02:42.6]}
18... Ra8 {[%clk 0:01:04.8]} 19. a5 {[%clk 0:02:28.9]} 19... b5 {[%clk
0:01:02.6]} 20. Bf1 {[%clk 0:02:29]} 20... f5 {[%clk 0:01:00.4]} 21. exf5 {[%clk
0:02:27.5]} 21... gxf5 {[%clk 0:00:57.9]} 22. c4 {[%clk 0:02:27.8]} 22... exd4
{[%clk 0:00:36.3]} 23. Bxd4 {[%clk 0:02:25.7]} 23... Bxd4+ {[%clk 0:00:35.1]}
24. Rxd4 {[%clk 0:02:26.6]} 24... Nc5 {[%clk 0:00:34]} 25. Qc3 {[%clk
0:02:24.5]} 25... b4 {[%clk 0:00:34.1]} 26. Qc2 {[%clk 0:01:16.4]} 26... Qe3+
{[%clk 0:00:32.5]} 27. Qf2 {[%clk 0:01:17]} 27... Qxf2+ {[%clk 0:00:32.8]} 28.
Kxf2 {[%clk 0:01:17.9]} 28... Nb3 {[%clk 0:00:33.1]} 29. Rad1 {[%clk 0:01:18.5]}
29... Nxd4 {[%clk 0:00:32.8]} 30. Rxd4 {[%clk 0:01:19.4]} 30... Rae8 {[%clk
0:00:31.7]} 31. Nd3 {[%clk 0:01:19.3]} 31... Rb8 {[%clk 0:00:26]} 32. b3 {[%clk
0:01:18.2]} 32... Bc8 {[%clk 0:00:21.9]} 33. Nf4 {[%clk 0:01:14.6]} 33... Rf7
{[%clk 0:00:19.3]} 34. c5 {[%clk 0:01:05]} 34... dxc5 {[%clk 0:00:16.7]} 35.
Rd8+ {[%clk 0:01:04.6]} 35... Kg7 {[%clk 0:00:16.7]} 36. Bc4 {[%clk 0:01:04.6]}
36... Rf8 {[%clk 0:00:14.8]} 37. Rd5 {[%clk 0:01:00.8]} 37... c6 {[%clk
0:00:12.4]} 38. Rxc5 {[%clk 0:01:00.8]} 38... Bd7 {[%clk 0:00:11]} 39. Be6
{[%clk 0:01:00.1]} 39... Rfd8 {[%clk 0:00:10.5]} 40. Bxd7 {[%clk 0:00:52.5]}
40... Rxd7 {[%clk 0:00:10.5]} 41. Rxc6 {[%clk 0:00:53.1]} 41... Rd2+ {[%clk
0:00:10.2]} 42. Ke3 {[%clk 0:00:51]} 42... Rb2 {[%clk 0:00:10.2]} 43. Ne6+
{[%clk 0:00:50]} 43... Kg8 {[%clk 0:00:09.9]} 44. Nd4 {[%clk 0:00:49.2]} 44...
Re8+ {[%clk 0:00:08.2]} 45. Kf4 {[%clk 0:00:48.4]} 45... Rxg2 {[%clk 0:00:08]}
46. Nxf5 {[%clk 0:00:46.2]} 46... Rb2 {[%clk 0:00:05.9]} 47. Nd4 {[%clk
0:00:45.3]} 47... Rd2 {[%clk 0:00:05.7]} 48. Rc4 {[%clk 0:00:45.2]} 48... Rf8+
{[%clk 0:00:04.6]} 49. Ke3 {[%clk 0:00:44.6]} 49... Rh2 {[%clk 0:00:04.6]} 50.
Rxb4 {[%clk 0:00:44.5]} 50... Rxh3 {[%clk 0:00:04.6]} 51. Rb6 {[%clk 0:00:43.8]}
51... Re8+ {[%clk 0:00:04.4]} 52. Kd3 {[%clk 0:00:42.9]} 52... Rh4 {[%clk
0:00:03.7]} 53. Rd6 {[%clk 0:00:41.6]} 53... Rf4 {[%clk 0:00:02.2]} 54. b4
{[%clk 0:00:41.2]} 54... h5 {[%clk 0:00:02.3]} 55. Kc3 {[%clk 0:00:35.4]} 55...
h4 {[%clk 0:00:02.2]} 56. Rh6 {[%clk 0:00:35]} 56... Kg7 {[%clk 0:00:01.5]} 57.
Rh5 {[%clk 0:00:34.4]} 57... Kg6 {[%clk 0:00:01.8]} 58. Rc5 {[%clk 0:00:34.1]}
58... h3 {[%clk 0:00:02.1]} 59. Rc6+ {[%clk 0:00:34.6]} 59... Kg5 {[%clk
0:00:01.2]} 60. Ne6+ {[%clk 0:00:34.7]} 1-0

[Event "*** SCC Grand Prix: Titled Tuesday Blitz"]
[Site "Chess.com"]
[Date "2020.06.09"]
[Round "5"]
[White "NIGWAPO"]
[Black "MathiasWomacka"]
[Result "1/2-1/2"]
[WhiteElo "2546"]
[BlackElo "2402"]
[TimeControl "180+1"]
[EndTime "9:57:25 PDT"]
[Termination "Game drawn by repetition"]

1. e4 {[%clk 0:03:00.9]} 1... c5 {[%clk 0:02:59.3]} 2. Nf3 {[%clk 0:02:59.6]}
2... d6 {[%clk 0:02:59.5]} 3. Bb5+ {[%clk 0:02:59.3]} 3... Nd7 {[%clk
0:02:58.8]} 4. a4 {[%clk 0:02:55.4]} 4... Nf6 {[%clk 0:02:57.1]} 5. d3 {[%clk
0:02:53.7]} 5... g6 {[%clk 0:02:54.8]} 6. O-O {[%clk 0:02:53.4]} 6... Bg7 {[%clk
0:02:54.9]} 7. c3 {[%clk 0:02:53.3]} 7... O-O {[%clk 0:02:49.8]} 8. h3 {[%clk
0:02:53.2]} 8... a6 {[%clk 0:02:46.5]} 9. Bc4 {[%clk 0:02:53.1]} 9... b6 {[%clk
0:02:46.8]} 10. Bg5 {[%clk 0:02:52.2]} 10... Bb7 {[%clk 0:02:45.9]} 11. Re1
{[%clk 0:02:51.3]} 11... h6 {[%clk 0:02:44.1]} 12. Bh4 {[%clk 0:02:51]} 12...
Bc6 {[%clk 0:02:19.7]} 13. Na3 {[%clk 0:02:42.7]} 13... Qc7 {[%clk 0:02:15.4]}
14. Qe2 {[%clk 0:02:31.1]} 14... Bxa4 {[%clk 0:02:10.3]} 15. Nc2 {[%clk
0:02:07.6]} 15... Bc6 {[%clk 0:02:05.4]} 16. Bxa6 {[%clk 0:01:59.2]} 16... b5
{[%clk 0:02:05]} 17. d4 {[%clk 0:01:59.3]} 17... Bxe4 {[%clk 0:01:52.3]} 18.
Bxb5 {[%clk 0:01:55.5]} 18... Rxa1 {[%clk 0:01:43.5]} 19. Rxa1 {[%clk
0:01:54.2]} 19... Rb8 {[%clk 0:01:39.1]} 20. c4 {[%clk 0:01:43.5]} 20... cxd4
{[%clk 0:01:18.1]} 21. Ncxd4 {[%clk 0:01:39.7]} 21... Nc5 {[%clk 0:01:13.8]} 22.
b4 {[%clk 0:01:35.8]} 22... Ncd7 {[%clk 0:00:56.2]} 23. Bxf6 {[%clk 0:01:31.1]}
23... Nxf6 {[%clk 0:00:55.3]} 24. Nd2 {[%clk 0:01:21.2]} 24... Bb7 {[%clk
0:00:48.9]} 25. N2b3 {[%clk 0:01:05.9]} 25... Ra8 {[%clk 0:00:44.3]} 26. Rxa8+
{[%clk 0:01:00.6]} 26... Bxa8 {[%clk 0:00:45.2]} 27. c5 {[%clk 0:01:00.6]} 27...
dxc5 {[%clk 0:00:42.3]} 28. bxc5 {[%clk 0:00:52.9]} 28... Bd5 {[%clk 0:00:41.9]}
29. Qe3 {[%clk 0:00:37.4]} 29... Ne4 {[%clk 0:00:31.1]} 30. Nf3 {[%clk
0:00:20.4]} 30... Bxb3 {[%clk 0:00:24.6]} 31. Qxb3 {[%clk 0:00:17.1]} 31... Qxc5
{[%clk 0:00:24.6]} 32. Qe3 {[%clk 0:00:13.9]} 32... Qxe3 {[%clk 0:00:19.8]} 33.
fxe3 {[%clk 0:00:14.1]} 33... e6 {[%clk 0:00:19.5]} 34. Bd3 {[%clk 0:00:14.3]}
34... Nd6 {[%clk 0:00:19]} 35. e4 {[%clk 0:00:14.1]} 35... Bc3 {[%clk
0:00:17.7]} 36. Kf2 {[%clk 0:00:14.3]} 36... f5 {[%clk 0:00:16.2]} 37. exf5
{[%clk 0:00:14.2]} 37... gxf5 {[%clk 0:00:17.1]} 38. g4 {[%clk 0:00:14.4]} 38...
Kf7 {[%clk 0:00:15.3]} 39. gxf5 {[%clk 0:00:14.5]} 39... Nxf5 {[%clk 0:00:16.2]}
40. Bxf5 {[%clk 0:00:14.3]} 40... exf5 {[%clk 0:00:16.3]} 41. Nh4 {[%clk
0:00:14.3]} 41... Kf6 {[%clk 0:00:16.3]} 42. Kf3 {[%clk 0:00:14.5]} 42... Be1
{[%clk 0:00:15.7]} 43. Ng2 {[%clk 0:00:14.7]} 43... Bb4 {[%clk 0:00:16]} 44. h4
{[%clk 0:00:15.1]} 44... Ke5 {[%clk 0:00:14.8]} 45. Ne3 {[%clk 0:00:14.8]} 45...
Bc5 {[%clk 0:00:13.5]} 46. Nc4+ {[%clk 0:00:14.6]} 46... Kf6 {[%clk 0:00:13]}
47. Kf4 {[%clk 0:00:14.4]} 47... Bb4 {[%clk 0:00:12]} 48. Kf3 {[%clk 0:00:13.8]}
48... Bc3 {[%clk 0:00:11.4]} 49. Ne3 {[%clk 0:00:13.8]} 49... Bd4 {[%clk
0:00:10.9]} 50. Nd5+ {[%clk 0:00:13.5]} 50... Ke5 {[%clk 0:00:11.4]} 51. Ne7
{[%clk 0:00:13.8]} 51... Kf6 {[%clk 0:00:11.1]} 52. Ng8+ {[%clk 0:00:12.6]}
52... Kg7 {[%clk 0:00:10.6]} 53. Ne7 {[%clk 0:00:12.8]} 53... Kf6 {[%clk
0:00:11.5]} 54. Ng8+ {[%clk 0:00:13.1]} 54... Kg7 {[%clk 0:00:11.4]} 55. Ne7
{[%clk 0:00:13.3]} 55... Kf6 {[%clk 0:00:12.3]} 1/2-1/2

[Event "*** SCC Grand Prix: Titled Tuesday Blitz"]
[Site "Chess.com"]
[Date "2020.06.09"]
[Round "5"]
[White "doctorcristian"]
[Black "Ginger_GM"]
[Result "1-0"]
[WhiteElo "2426"]
[BlackElo "2564"]
[TimeControl "180+1"]
[EndTime "9:57:26 PDT"]
[Termination "doctorcristian won by resignation"]

1. d4 {[%clk 0:03:00.9]} 1... Nf6 {[%clk 0:02:54.9]} 2. Nc3 {[%clk 0:02:54.5]}
2... e6 {[%clk 0:02:47.5]} 3. e4 {[%clk 0:02:53.9]} 3... d5 {[%clk 0:02:45.4]}
4. exd5 {[%clk 0:02:51.9]} 4... exd5 {[%clk 0:02:44.6]} 5. Bg5 {[%clk
0:02:51.9]} 5... Be7 {[%clk 0:02:43.9]} 6. Bd3 {[%clk 0:02:51.7]} 6... O-O
{[%clk 0:02:39.2]} 7. Nge2 {[%clk 0:02:50]} 7... Nc6 {[%clk 0:02:22.5]} 8. a3
{[%clk 0:02:43.5]} 8... Bg4 {[%clk 0:02:07]} 9. f3 {[%clk 0:02:42.1]} 9... Bh5
{[%clk 0:02:07]} 10. O-O {[%clk 0:02:38.3]} 10... Bg6 {[%clk 0:02:05.3]} 11.
Bxg6 {[%clk 0:02:37.2]} 11... hxg6 {[%clk 0:02:05]} 12. Nf4 {[%clk 0:02:27.6]}
12... Qd7 {[%clk 0:01:40.5]} 13. Qd2 {[%clk 0:02:10.1]} 13... Rad8 {[%clk
0:01:26.4]} 14. Rad1 {[%clk 0:02:07.9]} 14... Rfe8 {[%clk 0:01:16.9]} 15. Qf2
{[%clk 0:02:04.7]} 15... Qf5 {[%clk 0:01:13.2]} 16. h4 {[%clk 0:01:50.2]} 16...
Nh7 {[%clk 0:00:52.8]} 17. g4 {[%clk 0:01:47.1]} 17... Qc8 {[%clk 0:00:45.7]}
18. Bxe7 {[%clk 0:01:31.1]} 18... Nxe7 {[%clk 0:00:45.4]} 19. Rfe1 {[%clk
0:01:27]} 19... c6 {[%clk 0:00:45.4]} 20. Nd3 {[%clk 0:01:22.7]} 20... Qc7
{[%clk 0:00:42.3]} 21. Qh2 {[%clk 0:01:22.2]} 21... Qxh2+ {[%clk 0:00:40.7]} 22.
Kxh2 {[%clk 0:01:22.5]} 22... Nc8 {[%clk 0:00:40.7]} 23. b3 {[%clk 0:01:17.5]}
23... Nf8 {[%clk 0:00:40]} 24. Ne2 {[%clk 0:01:12.2]} 24... Ne6 {[%clk
0:00:37.5]} 25. c3 {[%clk 0:01:08.8]} 25... Nd6 {[%clk 0:00:37.5]} 26. a4 {[%clk
0:01:07]} 26... b6 {[%clk 0:00:36.1]} 27. Nef4 {[%clk 0:01:06.7]} 27... Nxf4
{[%clk 0:00:35.6]} 28. Nxf4 {[%clk 0:01:06.6]} 28... Kf8 {[%clk 0:00:33.7]} 29.
Kg2 {[%clk 0:01:06.6]} 29... Nb7 {[%clk 0:00:31.5]} 30. Nd3 {[%clk 0:00:55.5]}
30... Na5 {[%clk 0:00:27.3]} 31. Nc1 {[%clk 0:00:50.4]} 31... Rxe1 {[%clk
0:00:23.8]} 32. Rxe1 {[%clk 0:00:50.5]} 32... Re8 {[%clk 0:00:24.4]} 33. Rxe8+
{[%clk 0:00:50.5]} 33... Kxe8 {[%clk 0:00:25.2]} 34. Kf2 {[%clk 0:00:50.9]}
34... Kd7 {[%clk 0:00:25.5]} 35. Ke3 {[%clk 0:00:51.2]} 35... c5 {[%clk
0:00:26]} 36. dxc5 {[%clk 0:00:47.7]} 36... bxc5 {[%clk 0:00:26.5]} 37. Kd3
{[%clk 0:00:46.7]} 37... Nc6 {[%clk 0:00:24.8]} 38. f4 {[%clk 0:00:42.2]} 38...
Kd6 {[%clk 0:00:23.5]} 39. Ke3 {[%clk 0:00:37.5]} 39... Ne7 {[%clk 0:00:22.8]}
40. Nd3 {[%clk 0:00:34.6]} 40... f6 {[%clk 0:00:23.3]} 41. b4 {[%clk 0:00:34.4]}
41... cxb4 {[%clk 0:00:18.6]} 42. cxb4 {[%clk 0:00:34.6]} 42... Nc6 {[%clk
0:00:18.5]} 43. b5 {[%clk 0:00:34.6]} 43... Na5 {[%clk 0:00:18.4]} 44. Kd4
{[%clk 0:00:33]} 44... Nb3+ {[%clk 0:00:18.6]} 45. Kc3 {[%clk 0:00:33.2]} 45...
Nc5 {[%clk 0:00:16.1]} 46. Nxc5 {[%clk 0:00:33.2]} 46... Kxc5 {[%clk 0:00:16.1]}
47. h5 {[%clk 0:00:31.3]} 47... gxh5 {[%clk 0:00:16.1]} 48. gxh5 {[%clk
0:00:31.4]} 48... d4+ {[%clk 0:00:13.6]} 49. Kd3 {[%clk 0:00:31.3]} 49... Kb4
{[%clk 0:00:14]} 50. Kxd4 {[%clk 0:00:31.1]} 50... Kxa4 {[%clk 0:00:14.4]} 51.
Kc5 {[%clk 0:00:31.4]} 51... Ka5 {[%clk 0:00:12.1]} 52. f5 {[%clk 0:00:29.9]}
52... Ka4 {[%clk 0:00:11.4]} 53. b6 {[%clk 0:00:30]} 53... axb6+ {[%clk
0:00:11.9]} 54. Kxb6 {[%clk 0:00:30.8]} 54... Kb4 {[%clk 0:00:12.4]} 55. Kc6
{[%clk 0:00:31.6]} 55... Kc4 {[%clk 0:00:12.9]} 56. Kd6 {[%clk 0:00:32.2]} 56...
Kd4 {[%clk 0:00:13.4]} 57. Ke6 {[%clk 0:00:32.9]} 57... Ke4 {[%clk 0:00:13.3]}
58. Kf7 {[%clk 0:00:33.1]} 58... Kxf5 {[%clk 0:00:13.7]} 59. Kxg7 {[%clk
0:00:33.5]} 59... Kg4 {[%clk 0:00:12.5]} 60. h6 {[%clk 0:00:33.9]} 60... f5
{[%clk 0:00:13.4]} 61. h7 {[%clk 0:00:34.3]} 61... f4 {[%clk 0:00:14.3]} 62.
h8=Q {[%clk 0:00:35.2]} 62... f3 {[%clk 0:00:14.9]} 63. Qh1 {[%clk 0:00:33.9]}
63... Kg3 {[%clk 0:00:12.6]} 64. Qf1 {[%clk 0:00:33.6]} 64... f2 {[%clk
0:00:12.6]} 65. Kg6 {[%clk 0:00:33.7]} 1-0

[Event "*** SCC Grand Prix: Titled Tuesday Blitz"]
[Site "Chess.com"]
[Date "2020.06.09"]
[Round "5"]
[White "BJthechessgod"]
[Black "margarita_2703"]
[Result "1-0"]
[WhiteElo "2160"]
[BlackElo "2301"]
[TimeControl "180+1"]
[EndTime "9:57:26 PDT"]
[Termination "BJthechessgod won by checkmate"]

1. e4 {[%clk 0:03:00.9]} 1... Nf6 {[%clk 0:02:59.1]} 2. e5 {[%clk 0:03:00.5]}
2... Nd5 {[%clk 0:02:58.8]} 3. d4 {[%clk 0:02:45.8]} 3... d6 {[%clk 0:02:58]} 4.
Nf3 {[%clk 0:02:41.2]} 4... g6 {[%clk 0:02:57.3]} 5. Bc4 {[%clk 0:02:28.2]} 5...
Nb6 {[%clk 0:02:56.8]} 6. Bb3 {[%clk 0:02:27.3]} 6... Bg7 {[%clk 0:02:56.7]} 7.
O-O {[%clk 0:02:25.4]} 7... O-O {[%clk 0:02:56.4]} 8. Nc3 {[%clk 0:02:20.1]}
8... Bg4 {[%clk 0:02:55.7]} 9. Bf4 {[%clk 0:02:06.1]} 9... Nc6 {[%clk
0:02:49.8]} 10. exd6 {[%clk 0:01:54.5]} 10... cxd6 {[%clk 0:02:49.8]} 11. d5
{[%clk 0:01:50.7]} 11... Ne5 {[%clk 0:02:42.4]} 12. Bxe5 {[%clk 0:01:45.7]}
12... Bxe5 {[%clk 0:02:41.7]} 13. h3 {[%clk 0:01:44.2]} 13... Bxf3 {[%clk
0:02:31.8]} 14. Qxf3 {[%clk 0:01:42.6]} 14... Rc8 {[%clk 0:02:31.4]} 15. Rad1
{[%clk 0:01:19.3]} 15... Bxc3 {[%clk 0:02:25.4]} 16. bxc3 {[%clk 0:01:20.2]}
16... Qc7 {[%clk 0:02:24.6]} 17. Rd3 {[%clk 0:01:18.5]} 17... Nc4 {[%clk
0:02:16.5]} 18. Re1 {[%clk 0:01:05.5]} 18... Ne5 {[%clk 0:02:12.3]} 19. Rxe5
{[%clk 0:01:00.3]} 19... dxe5 {[%clk 0:02:12.4]} 20. Qe3 {[%clk 0:00:50.9]}
20... b6 {[%clk 0:02:07.5]} 21. Qh6 {[%clk 0:00:48.6]} 21... e4 {[%clk
0:02:02.8]} 22. Rg3 {[%clk 0:00:44.2]} 22... Qe5 {[%clk 0:01:52.8]} 23. d6
{[%clk 0:00:39.5]} 23... exd6 {[%clk 0:01:51.6]} 24. h4 {[%clk 0:00:26.5]} 24...
Rxc3 {[%clk 0:01:41.8]} 25. Rg4 {[%clk 0:00:17.3]} 25... Qg7 {[%clk 0:01:26.7]}
26. Qd2 {[%clk 0:00:16.4]} 26... Rc5 {[%clk 0:01:01.4]} 27. Rxe4 {[%clk
0:00:14.6]} 27... Rd8 {[%clk 0:00:57.4]} 28. Re7 {[%clk 0:00:14.2]} 28... Rf5
{[%clk 0:00:54.8]} 29. g4 {[%clk 0:00:13.6]} 29... Rf3 {[%clk 0:00:49.3]} 30.
Kg2 {[%clk 0:00:13]} 30... Rf6 {[%clk 0:00:26.2]} 31. g5 {[%clk 0:00:11.9]}
31... Rf5 {[%clk 0:00:24]} 32. Be6 {[%clk 0:00:06.2]} 32... fxe6 {[%clk
0:00:17.7]} 33. Rxg7+ {[%clk 0:00:06.3]} 33... Kxg7 {[%clk 0:00:18]} 34. Qd4+
{[%clk 0:00:06.4]} 34... e5 {[%clk 0:00:16.8]} 35. Qd5 {[%clk 0:00:06.6]} 35...
Rf7 {[%clk 0:00:15.6]} 36. c4 {[%clk 0:00:03.7]} 36... Rc7 {[%clk 0:00:15.4]}
37. Qe6 {[%clk 0:00:03.1]} 37... Rdd7 {[%clk 0:00:11.9]} 38. Qf6+ {[%clk
0:00:02.6]} 38... Kg8 {[%clk 0:00:11.6]} 39. Qe6+ {[%clk 0:00:02]} 39... Kf8
{[%clk 0:00:10.3]} 40. h5 {[%clk 0:00:02.4]} 40... gxh5 {[%clk 0:00:10]} 41.
Qh6+ {[%clk 0:00:02.7]} 41... Ke8 {[%clk 0:00:08.6]} 42. Qxh5+ {[%clk
0:00:03.6]} 42... Kd8 {[%clk 0:00:08.6]} 43. Qh6 {[%clk 0:00:03.7]} 43... Kc8
{[%clk 0:00:08]} 44. Qf8+ {[%clk 0:00:03.9]} 44... Kb7 {[%clk 0:00:08.1]} 45.
Qf3+ {[%clk 0:00:04.4]} 45... Kb8 {[%clk 0:00:06.7]} 46. Qd5 {[%clk 0:00:05]}
46... Rc5 {[%clk 0:00:05.5]} 47. Qg8+ {[%clk 0:00:05.2]} 47... Kc7 {[%clk
0:00:05.4]} 48. Kf3 {[%clk 0:00:05.5]} 48... a6 {[%clk 0:00:04.4]} 49. Ke4
{[%clk 0:00:05.9]} 49... b5 {[%clk 0:00:04.6]} 50. cxb5 {[%clk 0:00:05.4]} 50...
axb5 {[%clk 0:00:05]} 51. Kf5 {[%clk 0:00:05.8]} 51... Rc4 {[%clk 0:00:05.3]}
52. Ke6 {[%clk 0:00:05.7]} 52... Rf4 {[%clk 0:00:05.2]} 53. Qa8 {[%clk
0:00:05.3]} 53... Rff7 {[%clk 0:00:04.1]} 54. Qa7+ {[%clk 0:00:05.7]} 54... Kd8
{[%clk 0:00:04.4]} 55. Qb8# {[%clk 0:00:05.9]} 1-0

[Event "*** SCC Grand Prix: Titled Tuesday Blitz"]
[Site "Chess.com"]
[Date "2020.06.09"]
[Round "5"]
[White "Sanyura"]
[Black "SargissyanSargis"]
[Result "0-1"]
[WhiteElo "2479"]
[BlackElo "2310"]
[TimeControl "180+1"]
[EndTime "9:57:26 PDT"]
[Termination "SargissyanSargis won by resignation"]

1. e4 {[%clk 0:02:54.4]} 1... e5 {[%clk 0:02:59.3]} 2. Nf3 {[%clk 0:02:54.1]}
2... Nc6 {[%clk 0:02:59.4]} 3. Bb5 {[%clk 0:02:53.5]} 3... a6 {[%clk 0:02:58.3]}
4. Ba4 {[%clk 0:02:52.8]} 4... Nf6 {[%clk 0:02:58.8]} 5. O-O {[%clk 0:02:52]}
5... Be7 {[%clk 0:02:59]} 6. Re1 {[%clk 0:02:50.5]} 6... b5 {[%clk 0:02:59.4]}
7. Bb3 {[%clk 0:02:48.8]} 7... d6 {[%clk 0:03:00]} 8. c3 {[%clk 0:02:47.3]} 8...
O-O {[%clk 0:03:00.6]} 9. h3 {[%clk 0:02:47]} 9... Bb7 {[%clk 0:02:57.7]} 10. d4
{[%clk 0:02:46.7]} 10... Re8 {[%clk 0:02:57.9]} 11. Nbd2 {[%clk 0:02:45]} 11...
Bf8 {[%clk 0:02:57.4]} 12. a3 {[%clk 0:02:44.2]} 12... h6 {[%clk 0:02:49.8]} 13.
Ba2 {[%clk 0:02:39.5]} 13... g6 {[%clk 0:02:36.2]} 14. Nh4 {[%clk 0:02:37]}
14... Kg7 {[%clk 0:02:05.5]} 15. Nf1 {[%clk 0:02:14.9]} 15... exd4 {[%clk
0:02:00.6]} 16. Ng3 {[%clk 0:02:02]} 16... dxc3 {[%clk 0:01:45.8]} 17. bxc3
{[%clk 0:02:02.9]} 17... d5 {[%clk 0:01:31.2]} 18. Qd2 {[%clk 0:01:26.7]} 18...
Kh7 {[%clk 0:01:25.1]} 19. Bb2 {[%clk 0:00:39.8]} 19... Nxe4 {[%clk 0:00:50.8]}
20. Nxe4 {[%clk 0:00:24]} 20... dxe4 {[%clk 0:00:48.3]} 21. Qf4 {[%clk
0:00:21.5]} 21... f5 {[%clk 0:00:44.1]} 22. Nxf5 {[%clk 0:00:09.8]} 22... Ne5
{[%clk 0:00:28.7]} 23. c4 {[%clk 0:00:07.6]} 23... Nd3 {[%clk 0:00:23.9]} 24.
Qd2 {[%clk 0:00:06.7]} 24... Nxb2 {[%clk 0:00:22.8]} 25. Qxb2 {[%clk 0:00:07.6]}
25... gxf5 {[%clk 0:00:22.6]} 26. cxb5 {[%clk 0:00:08.2]} 26... Bg7 {[%clk
0:00:21.8]} 27. Qb3 {[%clk 0:00:08]} 27... Bxa1 {[%clk 0:00:20.6]} 28. Rxa1
{[%clk 0:00:07]} 28... Qe7 {[%clk 0:00:20]} 29. b6 {[%clk 0:00:05.3]} 29... c5
{[%clk 0:00:18.9]} 30. Qg3 {[%clk 0:00:03.5]} 30... Rad8 {[%clk 0:00:18.7]} 31.
Re1 {[%clk 0:00:02.9]} 31... Bd5 {[%clk 0:00:17.9]} 32. Qf4 {[%clk 0:00:03]}
32... Bxa2 {[%clk 0:00:17]} 33. Qxf5+ {[%clk 0:00:03.5]} 33... Kg7 {[%clk
0:00:16.5]} 34. f3 {[%clk 0:00:03.8]} 34... Qf6 {[%clk 0:00:15.4]} 35. Qg4+
{[%clk 0:00:04.1]} 35... Qg6 {[%clk 0:00:15.2]} 36. Qf4 {[%clk 0:00:03.4]} 36...
Qf7 {[%clk 0:00:13.5]} 37. Qg4+ {[%clk 0:00:03.4]} 37... Qg6 {[%clk 0:00:13.7]}
38. Qf4 {[%clk 0:00:03.7]} 38... Bd5 {[%clk 0:00:12.6]} 39. Qc7+ {[%clk
0:00:03.4]} 39... Qf7 {[%clk 0:00:12.3]} 40. Qg3+ {[%clk 0:00:02.7]} 40... Kh7
{[%clk 0:00:12.5]} 41. f4 {[%clk 0:00:02.9]} 41... Qg7 {[%clk 0:00:11.4]} 42.
Qe3 {[%clk 0:00:03]} 42... Qd4 {[%clk 0:00:10.8]} 43. Kh2 {[%clk 0:00:01.6]}
43... Qxe3 {[%clk 0:00:10.7]} 44. Rxe3 {[%clk 0:00:02.5]} 44... c4 {[%clk
0:00:11.3]} 45. g4 {[%clk 0:00:02.8]} 45... Rb8 {[%clk 0:00:11.2]} 46. f5 {[%clk
0:00:02.4]} 46... Rxb6 {[%clk 0:00:11.8]} 47. Re2 {[%clk 0:00:01.8]} 47... c3
{[%clk 0:00:10.5]} 0-1